[Event "Titled Tuesday Blitz November 22 Early 2022"]
[White "Akbas, Umut Ata"]
[Black "Unat, Can Haktan"]
[WhiteFideId "44572646"]
[BlackFideId "6398073"]
[WhiteElo "2192"]
[BlackElo "2146"]
[Result "1-0"]
[Round "10"]
[TimeControl "180+1"]
[Date "2022.11.22"]
[WhiteClock "0:00:38"]
[BlackClock "0:00:15"]

1. d4 {[%clk 0:03:00]}  Nf6 {[%clk 0:02:57]} 2. Nf3 {[%clk 0:03:00]}  g6 {[%clk 0:02:58]} 3. g3 {[%clk 0:02:59]}  Bg7 {[%clk 0:02:58]} 4. Bg2 {[%clk 0:02:59]}  O-O {[%clk 0:02:59]} 5. O-O {[%clk 0:03:00]}  d5 {[%clk 0:02:59]} 6. Nbd2 {[%clk 0:02:58]}  b6 {[%clk 0:02:58]} 7. c4 {[%clk 0:02:58]}  Bb7 {[%clk 0:02:58]} 8. cxd5 {[%clk 0:02:57]}  Bxd5 {[%clk 0:02:57]} 9. Qc2 {[%clk 0:02:58]}  Nbd7 {[%clk 0:02:45]} 10. e4 {[%clk 0:02:57]}  Bb7 {[%clk 0:02:46]} 11. Re1 {[%clk 0:02:52]}  e5 {[%clk 0:02:42]} 12. d5 {[%clk 0:02:35]}  c6 {[%clk 0:02:37]} 13. d6 {[%clk 0:02:14]}  Re8 {[%clk 0:02:33]} 14. Nc4 {[%clk 0:02:13]}  Nc5 {[%clk 0:02:28]} 15. Ncxe5 {[%clk 0:02:04]}  Qxd6 {[%clk 0:02:10]} 16. Bf4 {[%clk 0:02:04]}  Qe7 {[%clk 0:02:05]} 17. b4 {[%clk 0:01:52]}  Ncxe4 {[%clk 0:01:43]} 18. Nxc6 {[%clk 0:01:34]}  Bxc6 {[%clk 0:01:14]} 19. Qxc6 {[%clk 0:01:34]}  Rac8 {[%clk 0:01:15]} 20. Qa4 {[%clk 0:01:30]}  Nd5 {[%clk 0:01:15]} 21. Ng5 {[%clk 0:01:10]}  Nxf4 {[%clk 0:00:44]} 22. Rxe4 {[%clk 0:01:03]}  Ne6 {[%clk 0:00:16]} 23. Nxe6 {[%clk 0:00:59]}  Bxa1 {[%clk 0:00:14]} 24. Nc5 {[%clk 0:00:49]}  Qd8 {[%clk 0:00:07]} 25. Nb7 {[%clk 0:00:44]}  Rc1+ {[%clk 0:00:05]} 26. Bf1 {[%clk 0:00:44]}  Rxf1+ {[%clk 0:00:04]} 27. Kg2 {[%clk 0:00:43]}  Rxe4 {[%clk 0:00:02]} 28. Nxd8 {[%clk 0:00:42]}  Rfe1 {[%clk 0:00:02]} 29. Qxa7 {[%clk 0:00:38]}  Re7 {[%clk 0:00:02]} 30. Qxb6 {[%clk 0:00:39]}  Bg7 {[%clk 0:00:02]} 31. Qc5 {[%clk 0:00:36]}  Rd7 {[%clk 0:00:02]} 32. Qc8 {[%clk 0:00:34]}  Rxd8 {[%clk 0:00:01]} 33. Qxd8+ {[%clk 0:00:34]}  Bf8 {[%clk 0:00:02]} 34. b5 {[%clk 0:00:34]}  Ra1 {[%clk 0:00:03]} 35. b6 {[%clk 0:00:34]}  Rxa2 {[%clk 0:00:03]} 36. b7 {[%clk 0:00:34]}  Rb2 {[%clk 0:00:04]} 37. b8=Q {[%clk 0:00:35]}  Rxb8 {[%clk 0:00:05]} 38. Qxb8 {[%clk 0:00:35]}  Kg7 {[%clk 0:00:06]} 39. Qe5+ {[%clk 0:00:36]}  Kh6 {[%clk 0:00:06]} 40. Qf4+ {[%clk 0:00:36]}  Kg7 {[%clk 0:00:07]} 41. h4 {[%clk 0:00:37]}  h5 {[%clk 0:00:07]} 42. Qe4 {[%clk 0:00:37]}  Be7 {[%clk 0:00:07]} 43. f4 {[%clk 0:00:37]}  Bf6 {[%clk 0:00:08]} 44. f5 {[%clk 0:00:38]}  Kh6 {[%clk 0:00:09]} 45. fxg6 {[%clk 0:00:38]}  fxg6 {[%clk 0:00:10]} 46. Qe6 {[%clk 0:00:38]}  Kg7 {[%clk 0:00:11]} 47. Kh3 {[%clk 0:00:39]}  g5 {[%clk 0:00:11]} 48. hxg5 {[%clk 0:00:38]}  Bxg5 {[%clk 0:00:12]} 49. Qf5 {[%clk 0:00:38]}  h4 {[%clk 0:00:13]} 50. gxh4 {[%clk 0:00:38]}  Bxh4 {[%clk 0:00:14]} 51. Kxh4 {[%clk 0:00:38]}  Kg8 {[%clk 0:00:15]} 52. Qd7 {[%clk 0:00:38]} 1-0


[Site "https://www.chess.com"]

[Event "Titled Tuesday Blitz November 22 Early 2022"]
[White "Aloma Vidal, Robert"]
[Black "Urazayev, Arystanbek"]
[WhiteFideId "2260409"]
[BlackFideId "13709810"]
[WhiteElo "2435"]
[BlackElo "2441"]
[Result "0-1"]
[Round "10"]
[TimeControl "180+1"]
[Date "2022.11.22"]
[WhiteClock "0:00:07"]
[BlackClock "0:00:13"]

1. e4 {[%clk 0:02:52]}  c5 {[%clk 0:03:00]} 2. c3 {[%clk 0:02:52]}  e6 {[%clk 0:02:58]} 3. d4 {[%clk 0:02:51]}  d5 {[%clk 0:02:59]} 4. e5 {[%clk 0:02:52]}  Nc6 {[%clk 0:02:59]} 5. Nf3 {[%clk 0:02:52]}  Bd7 {[%clk 0:03:00]} 6. Be2 {[%clk 0:02:48]}  Nge7 {[%clk 0:02:58]} 7. Na3 {[%clk 0:02:47]}  Nf5 {[%clk 0:02:57]} 8. Nc2 {[%clk 0:02:48]}  cxd4 {[%clk 0:02:57]} 9. cxd4 {[%clk 0:02:48]}  Be7 {[%clk 0:02:57]} 10. O-O {[%clk 0:02:47]}  O-O {[%clk 0:02:57]} 11. Bd3 {[%clk 0:02:39]}  Rc8 {[%clk 0:02:57]} 12. a3 {[%clk 0:02:21]}  f6 {[%clk 0:02:47]} 13. Bf4 {[%clk 0:01:36]}  fxe5 {[%clk 0:02:27]} 14. Bxe5 {[%clk 0:01:35]}  Nxe5 {[%clk 0:02:25]} 15. Nxe5 {[%clk 0:01:35]}  Ba4 {[%clk 0:02:26]} 16. Rc1 {[%clk 0:01:30]}  Bg5 {[%clk 0:02:10]} 17. f4 {[%clk 0:01:28]}  Bf6 {[%clk 0:01:55]} 18. Qd2 {[%clk 0:01:16]}  Qb6 {[%clk 0:01:49]} 19. Bxf5 {[%clk 0:01:16]}  exf5 {[%clk 0:01:50]} 20. Ne3 {[%clk 0:01:16]}  Qe6 {[%clk 0:01:43]} 21. Qb4 {[%clk 0:01:12]}  Bc6 {[%clk 0:01:38]} 22. Rfe1 {[%clk 0:01:08]}  Bxe5 {[%clk 0:01:33]} 23. dxe5 {[%clk 0:01:07]}  d4 {[%clk 0:01:34]} 24. Qxd4 {[%clk 0:01:06]}  Rfd8 {[%clk 0:01:31]} 25. Qc4 {[%clk 0:01:02]}  Bd5 {[%clk 0:01:29]} 26. Qe2 {[%clk 0:00:53]}  Be4 {[%clk 0:01:29]} 27. Rxc8 {[%clk 0:00:44]}  Rxc8 {[%clk 0:01:30]} 28. h3 {[%clk 0:00:40]}  Rd8 {[%clk 0:01:23]} 29. Kh2 {[%clk 0:00:39]}  Qh6 {[%clk 0:01:09]} 30. Qf2 {[%clk 0:00:36]}  Qc6 {[%clk 0:01:07]} 31. Rd1 {[%clk 0:00:34]}  Rxd1 {[%clk 0:01:00]} 32. Nxd1 {[%clk 0:00:33]}  Qc1 {[%clk 0:00:58]} 33. Ne3 {[%clk 0:00:27]}  h5 {[%clk 0:00:58]} 34. Kg3 {[%clk 0:00:25]}  Kh7 {[%clk 0:00:57]} 35. Kh4 {[%clk 0:00:25]}  Qc5 {[%clk 0:00:43]} 36. g4 {[%clk 0:00:24]}  Qe7+ {[%clk 0:00:40]} 37. Kg3 {[%clk 0:00:24]}  h4+ {[%clk 0:00:39]} 38. Kh2 {[%clk 0:00:25]}  g6 {[%clk 0:00:37]} 39. gxf5 {[%clk 0:00:20]}  gxf5 {[%clk 0:00:38]} 40. b4 {[%clk 0:00:19]}  Kg8 {[%clk 0:00:37]} 41. Qg1+ {[%clk 0:00:19]}  Kf8 {[%clk 0:00:37]} 42. Qg5 {[%clk 0:00:19]}  Qd7 {[%clk 0:00:37]} 43. Qf6+ {[%clk 0:00:19]}  Kg8 {[%clk 0:00:37]} 44. Qg6+ {[%clk 0:00:18]}  Kf8 {[%clk 0:00:37]} 45. Qf6+ {[%clk 0:00:18]}  Kg8 {[%clk 0:00:38]} 46. Qd6 {[%clk 0:00:17]}  Qb5 {[%clk 0:00:36]} 47. Qg6+ {[%clk 0:00:14]}  Kf8 {[%clk 0:00:35]} 48. Qf6+ {[%clk 0:00:14]}  Ke8 {[%clk 0:00:35]} 49. Qe6+ {[%clk 0:00:14]}  Kd8 {[%clk 0:00:35]} 50. Qd6+ {[%clk 0:00:14]}  Ke8 {[%clk 0:00:32]} 51. Qe6+ {[%clk 0:00:13]}  Kf8 {[%clk 0:00:26]} 52. Qc4 {[%clk 0:00:14]}  Qa4 {[%clk 0:00:23]} 53. Qc8+ {[%clk 0:00:10]}  Kg7 {[%clk 0:00:22]} 54. Qc7+ {[%clk 0:00:09]}  Kf8 {[%clk 0:00:21]} 55. Qd8+ {[%clk 0:00:08]}  Kf7 {[%clk 0:00:20]} 56. Qf6+ {[%clk 0:00:07]}  Ke8 {[%clk 0:00:21]} 57. Qe6+ {[%clk 0:00:08]}  Kf8 {[%clk 0:00:21]} 58. Qf6+ {[%clk 0:00:08]}  Ke8 {[%clk 0:00:22]} 59. Qe6+ {[%clk 0:00:07]}  Kd8 {[%clk 0:00:21]} 60. Qa2 {[%clk 0:00:06]}  Qc6 {[%clk 0:00:17]} 61. Qc4 {[%clk 0:00:05]}  Qh6 {[%clk 0:00:16]} 62. Nd5 {[%clk 0:00:03]}  Bxd5 {[%clk 0:00:15]} 63. Qxd5+ {[%clk 0:00:03]}  Ke8 {[%clk 0:00:15]} 64. Qd4 {[%clk 0:00:02]}  Qh5 {[%clk 0:00:15]} 65. Qe3 {[%clk 0:00:02]}  Qd1 {[%clk 0:00:14]} 66. e6 {[%clk 0:00:03]}  b6 {[%clk 0:00:14]} 67. e7 {[%clk 0:00:02]}  Qc2+ {[%clk 0:00:12]} 68. Kg1 {[%clk 0:00:02]}  Qd1+ {[%clk 0:00:12]} 69. Kf2 {[%clk 0:00:02]}  Qh1 {[%clk 0:00:12]} 70. Qe6 {[%clk 0:00:02]}  Qh2+ {[%clk 0:00:12]} 71. Ke1 {[%clk 0:00:03]}  Qxf4 {[%clk 0:00:12]} 72. Qc8+ {[%clk 0:00:02]}  Kxe7 {[%clk 0:00:12]} 73. Qb7+ {[%clk 0:00:03]}  Kf6 {[%clk 0:00:13]} 74. Qxa7 {[%clk 0:00:04]}  Qe3+ {[%clk 0:00:13]} 75. Kd1 {[%clk 0:00:05]}  f4 {[%clk 0:00:12]} 76. Kc2 {[%clk 0:00:05]}  f3 {[%clk 0:00:11]} 77. Qc7 {[%clk 0:00:05]}  f2 {[%clk 0:00:11]} 78. Qd8+ {[%clk 0:00:06]}  Kf5 {[%clk 0:00:11]} 79. Qf8+ {[%clk 0:00:06]}  Ke4 {[%clk 0:00:11]} 80. Qe7+ {[%clk 0:00:06]}  Kf3 {[%clk 0:00:12]} 81. Qf6+ {[%clk 0:00:06]}  Kg2 {[%clk 0:00:12]} 82. Qg6+ {[%clk 0:00:06]}  Qg3 {[%clk 0:00:12]} 83. Qe4+ {[%clk 0:00:07]}  Kg1 {[%clk 0:00:13]} 0-1


[Site "https://www.chess.com"]

[Event "Titled Tuesday Blitz November 22 Early 2022"]
[White "Ansh M Shah"]
[Black "Safin, Robert"]
[WhiteFideId "25033379"]
[BlackFideId "34189120"]
[WhiteElo "2084"]
[BlackElo "2253"]
[Result "0-1"]
[Round "10"]
[TimeControl "180+1"]
[Date "2022.11.23"]
[WhiteClock "0:00:37"]
[BlackClock "0:00:14"]

1. d4 {[%clk 0:03:00]}  Nf6 {[%clk 0:02:44]} 2. c4 {[%clk 0:03:00]}  c5 {[%clk 0:02:44]} 3. d5 {[%clk 0:03:00]}  b5 {[%clk 0:02:44]} 4. cxb5 {[%clk 0:03:00]}  a6 {[%clk 0:02:44]} 5. e3 {[%clk 0:03:01]}  g6 {[%clk 0:02:41]} 6. Nc3 {[%clk 0:02:58]}  d6 {[%clk 0:02:40]} 7. h4 {[%clk 0:02:53]}  Bg7 {[%clk 0:02:37]} 8. a4 {[%clk 0:02:50]}  O-O {[%clk 0:02:25]} 9. Nf3 {[%clk 0:02:42]}  axb5 {[%clk 0:02:12]} 10. Bxb5 {[%clk 0:02:40]}  Ba6 {[%clk 0:02:13]} 11. Bd2 {[%clk 0:02:38]}  Nbd7 {[%clk 0:02:08]} 12. O-O {[%clk 0:02:36]}  Nb6 {[%clk 0:02:05]} 13. e4 {[%clk 0:02:33]}  Nc4 {[%clk 0:02:02]} 14. Bc1 {[%clk 0:02:24]}  Bxb5 {[%clk 0:01:50]} 15. Nxb5 {[%clk 0:02:25]}  Nb6 {[%clk 0:01:34]} 16. Re1 {[%clk 0:02:15]}  Qd7 {[%clk 0:01:30]} 17. Bd2 {[%clk 0:02:09]}  Nxa4 {[%clk 0:01:25]} 18. Rxa4 {[%clk 0:01:41]}  Qxb5 {[%clk 0:01:24]} 19. Rxa8 {[%clk 0:01:42]}  Rxa8 {[%clk 0:01:25]} 20. Bc3 {[%clk 0:01:42]}  Ng4 {[%clk 0:01:12]} 21. Bxg7 {[%clk 0:01:37]}  Kxg7 {[%clk 0:01:13]} 22. Ng5 {[%clk 0:01:30]}  h5 {[%clk 0:01:04]} 23. f3 {[%clk 0:01:16]}  Ne5 {[%clk 0:01:04]} 24. Qe2 {[%clk 0:01:10]}  Qxe2 {[%clk 0:00:48]} 25. Rxe2 {[%clk 0:01:11]}  Ra2 {[%clk 0:00:48]} 26. Kf2 {[%clk 0:01:07]}  Rxb2 {[%clk 0:00:43]} 27. Rxb2 {[%clk 0:01:03]}  Nd3+ {[%clk 0:00:44]} 28. Ke3 {[%clk 0:01:03]}  Nxb2 {[%clk 0:00:45]} 29. Kd2 {[%clk 0:00:59]}  Nc4+ {[%clk 0:00:43]} 30. Kc3 {[%clk 0:00:59]}  Ne3 {[%clk 0:00:42]} 31. g3 {[%clk 0:00:57]}  Nf1 {[%clk 0:00:42]} 32. g4 {[%clk 0:00:57]}  hxg4 {[%clk 0:00:42]} 33. fxg4 {[%clk 0:00:58]}  Ne3 {[%clk 0:00:41]} 34. h5 {[%clk 0:00:53]}  Nxg4 {[%clk 0:00:41]} 35. h6+ {[%clk 0:00:53]}  Nxh6 {[%clk 0:00:38]} 36. Kc4 {[%clk 0:00:51]}  Ng4 {[%clk 0:00:38]} 37. Kb5 {[%clk 0:00:51]}  Nf2 {[%clk 0:00:37]} 38. Kc6 {[%clk 0:00:51]}  Kf6 {[%clk 0:00:37]} 39. Nh7+ {[%clk 0:00:49]}  Ke5 {[%clk 0:00:37]} 40. Kd7 {[%clk 0:00:49]}  c4 {[%clk 0:00:36]} 41. Ng5 {[%clk 0:00:47]}  c3 {[%clk 0:00:36]} 42. Nf3+ {[%clk 0:00:46]}  Kxe4 {[%clk 0:00:36]} 43. Ne1 {[%clk 0:00:47]}  Kxd5 {[%clk 0:00:35]} 44. Kxe7 {[%clk 0:00:46]}  g5 {[%clk 0:00:35]} 45. Kxf7 {[%clk 0:00:46]}  g4 {[%clk 0:00:35]} 46. Kf6 {[%clk 0:00:47]}  g3 {[%clk 0:00:35]} 47. Kf5 {[%clk 0:00:47]}  Kd4 {[%clk 0:00:19]} 48. Kf4 {[%clk 0:00:39]}  g2 {[%clk 0:00:16]} 49. Nxg2 {[%clk 0:00:38]}  c2 {[%clk 0:00:17]} 50. Kf3 {[%clk 0:00:37]}  c1=Q {[%clk 0:00:16]} 51. Nf4 {[%clk 0:00:38]}  Qe3+ {[%clk 0:00:15]} 52. Kg2 {[%clk 0:00:39]}  Qxf4 {[%clk 0:00:14]} 53. Kf1 {[%clk 0:00:36]}  Ne4+ {[%clk 0:00:14]} 54. Ke2 {[%clk 0:00:36]}  Qf2+ {[%clk 0:00:14]} 55. Kd1 {[%clk 0:00:37]}  Qd2# {[%clk 0:00:14]} 0-1


[Site "https://www.chess.com"]

[Event "Titled Tuesday Blitz November 22 Early 2022"]
[White "Arabidze, Meri"]
[Black "Pajeken, Jakob Leon"]
[WhiteFideId "13604040"]
[BlackFideId "12942839"]
[WhiteElo "2403"]
[BlackElo "2429"]
[Result "1-0"]
[Round "10"]
[TimeControl "180+1"]
[Date "2022.11.23"]
[WhiteClock "0:00:26"]
[BlackClock "0:00:45"]

1. b3 {[%clk 0:02:54]}  d5 {[%clk 0:02:58]} 2. Bb2 {[%clk 0:02:54]}  Bg4 {[%clk 0:02:59]} 3. f3 {[%clk 0:02:52]}  Bh5 {[%clk 0:02:59]} 4. e3 {[%clk 0:02:52]}  Nd7 {[%clk 0:02:55]} 5. Ne2 {[%clk 0:02:52]}  e5 {[%clk 0:02:55]} 6. Ng3 {[%clk 0:02:50]}  Bg6 {[%clk 0:02:55]} 7. Be2 {[%clk 0:02:47]}  Be7 {[%clk 0:02:53]} 8. O-O {[%clk 0:02:46]}  Ngf6 {[%clk 0:02:48]} 9. f4 {[%clk 0:02:46]}  exf4 {[%clk 0:02:47]} 10. exf4 {[%clk 0:02:45]}  h6 {[%clk 0:02:44]} 11. f5 {[%clk 0:02:41]}  Bh7 {[%clk 0:02:44]} 12. d4 {[%clk 0:02:35]}  O-O {[%clk 0:02:42]} 13. Bd3 {[%clk 0:02:35]}  Bd6 {[%clk 0:02:35]} 14. Nd2 {[%clk 0:02:35]}  Bxg3 {[%clk 0:02:34]} 15. hxg3 {[%clk 0:02:35]}  c5 {[%clk 0:02:35]} 16. g4 {[%clk 0:02:27]}  Rc8 {[%clk 0:02:19]} 17. Qf3 {[%clk 0:02:07]}  Qb6 {[%clk 0:02:06]} 18. dxc5 {[%clk 0:02:05]}  Qxc5+ {[%clk 0:02:06]} 19. Kh1 {[%clk 0:02:01]}  Rfe8 {[%clk 0:02:01]} 20. Qf4 {[%clk 0:02:01]}  Qc6 {[%clk 0:01:48]} 21. g5 {[%clk 0:01:51]}  hxg5 {[%clk 0:01:46]} 22. Qxg5 {[%clk 0:01:51]}  Qd6 {[%clk 0:01:40]} 23. Nf3 {[%clk 0:01:48]}  Qf8 {[%clk 0:01:34]} 24. Rae1 {[%clk 0:01:42]}  Ne4 {[%clk 0:01:34]} 25. Qf4 {[%clk 0:01:25]}  Ndf6 {[%clk 0:01:27]} 26. g4 {[%clk 0:01:17]}  Qc5 {[%clk 0:01:23]} 27. Bd4 {[%clk 0:01:14]}  Qc6 {[%clk 0:01:17]} 28. Kg2 {[%clk 0:01:13]}  Nc3 {[%clk 0:01:07]} 29. Ne5 {[%clk 0:01:01]}  Qc7 {[%clk 0:00:59]} 30. Rh1 {[%clk 0:00:57]}  Nd7 {[%clk 0:00:47]} 31. Qh2 {[%clk 0:00:33]}  Nxe5 {[%clk 0:00:47]} 32. Bxe5 {[%clk 0:00:31]}  Qc6 {[%clk 0:00:44]} 33. Qxh7+ {[%clk 0:00:30]}  Kf8 {[%clk 0:00:45]} 34. Bd6+ {[%clk 0:00:26]} 1-0


[Site "https://www.chess.com"]

[Event "Titled Tuesday Blitz November 22 Early 2022"]
[White "Avazkhonov, Alikhon"]
[Black "Melikyan, Gnel"]
[WhiteFideId "14208504"]
[BlackFideId "54109990"]
[WhiteElo "1739"]
[BlackElo "2138"]
[Result "0-1"]
[Round "10"]
[TimeControl "180+1"]
[Date "2022.11.23"]
[WhiteClock "0:00:11"]
[BlackClock "0:01:41"]

1. d4 {[%clk 0:03:00]}  e5 {[%clk 0:02:58]} 2. dxe5 {[%clk 0:03:00]}  Nc6 {[%clk 0:02:58]} 3. Nf3 {[%clk 0:03:00]}  Bc5 {[%clk 0:02:58]} 4. Nc3 {[%clk 0:02:55]}  Nge7 {[%clk 0:02:59]} 5. Ne4 {[%clk 0:02:54]}  Bb6 {[%clk 0:02:59]} 6. Bg5 {[%clk 0:02:50]}  h6 {[%clk 0:02:59]} 7. Bh4 {[%clk 0:02:49]}  g5 {[%clk 0:02:55]} 8. Nf6+ {[%clk 0:02:43]}  Kf8 {[%clk 0:02:55]} 9. Bg3 {[%clk 0:02:34]}  Ng6 {[%clk 0:02:55]} 10. e3 {[%clk 0:02:29]}  d6 {[%clk 0:02:51]} 11. Bc4 {[%clk 0:02:21]}  g4 {[%clk 0:02:37]} 12. Nh4 {[%clk 0:01:55]}  Ngxe5 {[%clk 0:02:36]} 13. Nh5 {[%clk 0:00:59]}  Nxc4 {[%clk 0:02:30]} 14. O-O {[%clk 0:00:57]}  N4e5 {[%clk 0:02:25]} 15. Qd5 {[%clk 0:00:46]}  Be6 {[%clk 0:02:24]} 16. Qe4 {[%clk 0:00:42]}  d5 {[%clk 0:02:09]} 17. Qf4 {[%clk 0:00:30]}  Qg5 {[%clk 0:02:08]} 18. Nf6 {[%clk 0:00:21]}  Qxf4 {[%clk 0:02:04]} 19. exf4 {[%clk 0:00:22]}  Nd7 {[%clk 0:01:57]} 20. f5 {[%clk 0:00:21]}  Nxf6 {[%clk 0:01:53]} 21. fxe6 {[%clk 0:00:22]}  Ne4 {[%clk 0:01:50]} 22. Kh1 {[%clk 0:00:15]}  Re8 {[%clk 0:01:45]} 23. exf7 {[%clk 0:00:13]}  Kxf7 {[%clk 0:01:46]} 24. Bf4 {[%clk 0:00:11]}  Nxf2+ {[%clk 0:01:41]} 0-1


[Site "https://www.chess.com"]

[Event "Titled Tuesday Blitz November 22 Early 2022"]
[White "Bacrot, Etienne"]
[Black "Vaishali, Rameshbabu"]
[WhiteFideId "605506"]
[BlackFideId "5091756"]
[WhiteElo "2666"]
[BlackElo "2351"]
[Result "1-0"]
[Round "10"]
[TimeControl "180+1"]
[Date "2022.11.22"]
[WhiteClock "0:00:13"]
[BlackClock "0:00:05"]

1. Nf3 {[%clk 0:03:00]}  d5 {[%clk 0:02:58]} 2. g3 {[%clk 0:03:01]}  Nd7 {[%clk 0:02:58]} 3. b3 {[%clk 0:03:00]}  e5 {[%clk 0:02:57]} 4. Bb2 {[%clk 0:03:00]}  Bd6 {[%clk 0:02:57]} 5. Bg2 {[%clk 0:03:00]}  Ngf6 {[%clk 0:02:55]} 6. O-O {[%clk 0:03:00]}  O-O {[%clk 0:02:55]} 7. d4 {[%clk 0:03:00]}  e4 {[%clk 0:02:51]} 8. Ne5 {[%clk 0:03:00]}  Re8 {[%clk 0:02:50]} 9. c4 {[%clk 0:02:48]}  c6 {[%clk 0:02:48]} 10. Nxd7 {[%clk 0:02:32]}  Bxd7 {[%clk 0:02:49]} 11. e3 {[%clk 0:02:33]}  h5 {[%clk 0:02:48]} 12. h3 {[%clk 0:02:31]}  Qc8 {[%clk 0:02:45]} 13. Kh2 {[%clk 0:02:30]}  h4 {[%clk 0:02:44]} 14. Ba3 {[%clk 0:02:24]}  Bc7 {[%clk 0:02:23]} 15. Nc3 {[%clk 0:02:24]}  g6 {[%clk 0:01:59]} 16. cxd5 {[%clk 0:02:17]}  cxd5 {[%clk 0:01:53]} 17. Rc1 {[%clk 0:02:17]}  Bc6 {[%clk 0:01:42]} 18. Ne2 {[%clk 0:02:16]}  Kg7 {[%clk 0:01:40]} 19. Kg1 {[%clk 0:02:13]}  Rh8 {[%clk 0:01:34]} 20. g4 {[%clk 0:02:12]}  Nxg4 {[%clk 0:01:32]} 21. hxg4 {[%clk 0:02:04]}  Qxg4 {[%clk 0:01:33]} 22. Nf4 {[%clk 0:02:00]}  Qf5 {[%clk 0:00:58]} 23. Nh3 {[%clk 0:01:37]}  g5 {[%clk 0:00:38]} 24. f3 {[%clk 0:01:37]}  exf3 {[%clk 0:00:36]} 25. Qxf3 {[%clk 0:01:29]}  Qxf3 {[%clk 0:00:29]} 26. Bxf3 {[%clk 0:01:27]}  Bd8 {[%clk 0:00:18]} 27. Bg4 {[%clk 0:01:21]}  Re8 {[%clk 0:00:18]} 28. Rf3 {[%clk 0:01:13]}  f6 {[%clk 0:00:18]} 29. Nf2 {[%clk 0:01:06]}  Ba5 {[%clk 0:00:14]} 30. b4 {[%clk 0:01:03]}  Bd8 {[%clk 0:00:13]} 31. b5 {[%clk 0:00:55]}  Bxb5 {[%clk 0:00:12]} 32. Bf5 {[%clk 0:00:56]}  Be2 {[%clk 0:00:08]} 33. Rh3 {[%clk 0:00:54]}  Ba5 {[%clk 0:00:05]} 34. Rc5 {[%clk 0:00:51]}  b6 {[%clk 0:00:02]} 35. Rc7+ {[%clk 0:00:45]}  Kg8 {[%clk 0:00:03]} 36. Ng4 {[%clk 0:00:39]}  Bxg4 {[%clk 0:00:02]} 37. Bxg4 {[%clk 0:00:40]}  Bd2 {[%clk 0:00:03]} 38. Kf2 {[%clk 0:00:39]}  b5 {[%clk 0:00:03]} 39. Bc5 {[%clk 0:00:38]}  b4 {[%clk 0:00:02]} 40. Be7 {[%clk 0:00:36]}  Kg7 {[%clk 0:00:01]} 41. Bxb4+ {[%clk 0:00:35]}  Kg6 {[%clk 0:00:01]} 42. Bxd2 {[%clk 0:00:33]}  Rab8 {[%clk 0:00:02]} 43. Bd1 {[%clk 0:00:32]}  Rb2 {[%clk 0:00:03]} 44. Bc2+ {[%clk 0:00:32]}  f5 {[%clk 0:00:04]} 45. Rf3 {[%clk 0:00:30]}  Rf8 {[%clk 0:00:03]} 46. Ke2 {[%clk 0:00:29]}  g4 {[%clk 0:00:03]} 47. Rc6+ {[%clk 0:00:27]}  Kg5 {[%clk 0:00:03]} 48. Rf1 {[%clk 0:00:27]}  h3 {[%clk 0:00:03]} 49. Be1 {[%clk 0:00:21]}  h2 {[%clk 0:00:03]} 50. Bg3 {[%clk 0:00:20]}  Rh8 {[%clk 0:00:02]} 51. Bf4+ {[%clk 0:00:21]}  Kh4 {[%clk 0:00:01]} 52. Bxh2 {[%clk 0:00:19]}  g3 {[%clk 0:00:02]} 53. Bg1 {[%clk 0:00:19]}  Kh3 {[%clk 0:00:02]} 54. Rc1 {[%clk 0:00:19]}  Kg2 {[%clk 0:00:02]} 55. Rg6 {[%clk 0:00:14]}  Rh1 {[%clk 0:00:03]} 56. Kd3 {[%clk 0:00:14]}  Rxg1 {[%clk 0:00:03]} 57. Rxg1+ {[%clk 0:00:14]}  Kxg1 {[%clk 0:00:03]} 58. Rxg3+ {[%clk 0:00:15]}  Kf2 {[%clk 0:00:04]} 59. Rg5 {[%clk 0:00:15]}  Rxa2 {[%clk 0:00:05]} 60. Rxf5+ {[%clk 0:00:15]}  Ke1 {[%clk 0:00:06]} 61. Rxd5 {[%clk 0:00:15]}  Ra3+ {[%clk 0:00:06]} 62. Ke4 {[%clk 0:00:15]}  Kd2 {[%clk 0:00:07]} 63. Rc5 {[%clk 0:00:13]}  Rxe3+ {[%clk 0:00:05]} 64. Kd5 {[%clk 0:00:14]}  Rh3 {[%clk 0:00:04]} 65. Bf5 {[%clk 0:00:13]}  Ra3 {[%clk 0:00:03]} 66. Ke5 {[%clk 0:00:13]}  a5 {[%clk 0:00:03]} 67. d5 {[%clk 0:00:13]}  Re3+ {[%clk 0:00:03]} 68. Kf6 {[%clk 0:00:13]}  a4 {[%clk 0:00:04]} 69. d6 {[%clk 0:00:13]}  a3 {[%clk 0:00:04]} 70. d7 {[%clk 0:00:13]}  a2 {[%clk 0:00:04]} 71. d8=Q+ {[%clk 0:00:13]}  Ke1 {[%clk 0:00:05]} 72. Ra5 {[%clk 0:00:13]} 1-0


[Site "https://www.chess.com"]

[Event "Titled Tuesday Blitz November 22 Early 2022"]
[White "Barria Zuniga, Daniel"]
[Black "Bon, Michael"]
[WhiteFideId "3400816"]
[BlackFideId "620696"]
[WhiteElo "2414"]
[BlackElo "2379"]
[Result "1-0"]
[Round "10"]
[TimeControl "180+1"]
[Date "2022.11.23"]
[WhiteClock "0:00:53"]
[BlackClock "0:00:05"]

1. c4 {[%clk 0:02:51]}  e5 {[%clk 0:02:55]} 2. g3 {[%clk 0:02:50]}  Nf6 {[%clk 0:02:54]} 3. Bg2 {[%clk 0:02:50]}  Nc6 {[%clk 0:02:53]} 4. Nc3 {[%clk 0:02:49]}  Bb4 {[%clk 0:02:52]} 5. Na4 {[%clk 0:02:48]}  O-O {[%clk 0:02:28]} 6. a3 {[%clk 0:02:49]}  Be7 {[%clk 0:02:26]} 7. b4 {[%clk 0:02:49]}  d5 {[%clk 0:02:20]} 8. cxd5 {[%clk 0:02:50]}  Nxd5 {[%clk 0:02:20]} 9. Bb2 {[%clk 0:02:50]}  Bf6 {[%clk 0:02:14]} 10. d3 {[%clk 0:02:39]}  Nd4 {[%clk 0:02:10]} 11. e3 {[%clk 0:02:35]}  Nc6 {[%clk 0:01:51]} 12. Rc1 {[%clk 0:02:27]}  a5 {[%clk 0:01:39]} 13. b5 {[%clk 0:02:26]}  Nce7 {[%clk 0:01:23]} 14. Nf3 {[%clk 0:02:23]}  Qd6 {[%clk 0:01:11]} 15. O-O {[%clk 0:02:17]}  Bd7 {[%clk 0:01:09]} 16. Qb3 {[%clk 0:02:11]}  b6 {[%clk 0:01:07]} 17. e4 {[%clk 0:02:07]}  Be6 {[%clk 0:00:50]} 18. exd5 {[%clk 0:02:00]}  Bxd5 {[%clk 0:00:51]} 19. Qc2 {[%clk 0:01:59]}  Rac8 {[%clk 0:00:47]} 20. Nc3 {[%clk 0:01:57]}  Ba8 {[%clk 0:00:46]} 21. Ne4 {[%clk 0:01:58]}  Qe6 {[%clk 0:00:37]} 22. a4 {[%clk 0:01:53]}  Nd5 {[%clk 0:00:29]} 23. Qc4 {[%clk 0:01:45]}  Rfd8 {[%clk 0:00:25]} 24. d4 {[%clk 0:01:39]}  exd4 {[%clk 0:00:13]} 25. Nxd4 {[%clk 0:01:38]}  Qe5 {[%clk 0:00:11]} 26. Ba1 {[%clk 0:01:30]}  Qh5 {[%clk 0:00:05]} 27. Rfd1 {[%clk 0:00:53]} 1-0


[Site "https://www.chess.com"]